[Event "*** Titled Tuesday Blitz"]
[Site "Chess.com"]
[Date "2021.02.02"]
[Round "4"]
[White "Gusarov91"]
[Black "CakeinSpace2002"]
[Result "1-0"]
[WhiteElo "1232"]
[BlackElo "2363"]
[TimeControl "180+1"]
[EndTime "10:43:29 PST"]
[Termination "Gusarov91 won by checkmate"]

1. e4 {[%clk 0:02:51.6]} 1... c5 {[%clk 0:02:59.1]} 2. Nf3 {[%clk 0:02:51.6]}
2... Nc6 {[%clk 0:02:55.5]} 3. Bb5 {[%clk 0:02:50.1]} 3... g6 {[%clk 0:02:54.8]}
4. O-O {[%clk 0:02:46.6]} 4... Bg7 {[%clk 0:02:54.3]} 5. c3 {[%clk 0:02:47]}
5... e5 {[%clk 0:02:52.2]} 6. Re1 {[%clk 0:02:45.3]} 6... Nge7 {[%clk
0:02:50.9]} 7. d3 {[%clk 0:02:40.8]} 7... O-O {[%clk 0:02:46.9]} 8. Nbd2 {[%clk
0:02:39.3]} 8... d6 {[%clk 0:02:43.9]} 9. a3 {[%clk 0:02:31]} 9... h6 {[%clk
0:02:41.1]} 10. b4 {[%clk 0:02:30.7]} 10... a6 {[%clk 0:02:37.6]} 11. Bc4 {[%clk
0:02:30.4]} 11... b5 {[%clk 0:02:36.3]} 12. Bb3 {[%clk 0:02:30.7]} 12... Kh7
{[%clk 0:02:31.5]} 13. Bb2 {[%clk 0:02:27.7]} 13... f5 {[%clk 0:02:25.2]} 14.
Qe2 {[%clk 0:02:20.7]} 14... f4 {[%clk 0:02:23.7]} 15. bxc5 {[%clk 0:02:01.6]}
15... dxc5 {[%clk 0:02:23.2]} 16. a4 {[%clk 0:02:01.6]} 16... Bb7 {[%clk
0:02:14.3]} 17. axb5 {[%clk 0:02:01]} 17... axb5 {[%clk 0:02:14.4]} 18. Rxa8
{[%clk 0:02:01.9]} 18... Bxa8 {[%clk 0:02:05.3]} 19. d4 {[%clk 0:01:58.6]} 19...
cxd4 {[%clk 0:01:59.8]} 20. cxd4 {[%clk 0:01:58.7]} 20... Nxd4 {[%clk
0:01:57.9]} 21. Nxd4 {[%clk 0:01:58.7]} 21... exd4 {[%clk 0:01:58.8]} 22. Qxb5
{[%clk 0:01:58.7]} 22... Bc6 {[%clk 0:01:38.6]} 23. Qc5 {[%clk 0:01:55.4]} 23...
Qd7 {[%clk 0:01:35.1]} 24. Ba3 {[%clk 0:01:40.3]} 24... Ng8 {[%clk 0:01:28.7]}
25. Bd5 {[%clk 0:01:31.9]} 25... Rc8 {[%clk 0:01:21.4]} 26. Rc1 {[%clk
0:01:04.9]} 26... Bb7 {[%clk 0:01:10.4]} 27. Qa5 {[%clk 0:01:00.5]} 27... Rxc1+
{[%clk 0:01:09.5]} 28. Bxc1 {[%clk 0:01:00.3]} 28... Bxd5 {[%clk 0:01:06.6]} 29.
Qxd5 {[%clk 0:01:00.1]} 29... Qc8 {[%clk 0:01:05.9]} 30. Qc4 {[%clk 0:00:58.2]}
30... Qa8 {[%clk 0:01:04.2]} 31. h3 {[%clk 0:00:51.8]} 31... Ne7 {[%clk
0:00:51.7]} 32. Nf3 {[%clk 0:00:49.8]} 32... Qxe4 {[%clk 0:00:51]} 33. Bd2
{[%clk 0:00:47.2]} 33... Nf5 {[%clk 0:00:50.6]} 34. Qf7 {[%clk 0:00:45.4]} 34...
d3 {[%clk 0:00:38.1]} 35. h4 {[%clk 0:00:43.9]} 35... Nd6 {[%clk 0:00:31.7]} 36.
Qxf4 {[%clk 0:00:43.4]} 36... Qxf4 {[%clk 0:00:31.5]} 37. Bxf4 {[%clk
0:00:44.3]} 37... Ne4 {[%clk 0:00:31.3]} 38. Nd2 {[%clk 0:00:43.3]} 38... Nc3
{[%clk 0:00:29.3]} 39. Kf1 {[%clk 0:00:43.4]} 39... Ne2 {[%clk 0:00:29.2]} 40.
Be3 {[%clk 0:00:43.9]} 40... Bc3 {[%clk 0:00:27.7]} 41. Ne4 {[%clk 0:00:42.9]}
41... Ba5 {[%clk 0:00:25.9]} 42. f3 {[%clk 0:00:43.1]} 42... Kg7 {[%clk
0:00:21.7]} 43. Kf2 {[%clk 0:00:43.2]} 43... Kf7 {[%clk 0:00:19.6]} 44. Bxh6
{[%clk 0:00:41.9]} 44... Ke6 {[%clk 0:00:19.7]} 45. Be3 {[%clk 0:00:41.7]} 45...
Ke5 {[%clk 0:00:20]} 46. g4 {[%clk 0:00:40.7]} 46... Bb4 {[%clk 0:00:18.2]} 47.
h5 {[%clk 0:00:40.5]} 47... gxh5 {[%clk 0:00:19]} 48. gxh5 {[%clk 0:00:40.8]}
48... Kf5 {[%clk 0:00:19.3]} 49. h6 {[%clk 0:00:35.9]} 49... Kg6 {[%clk
0:00:19.6]} 50. Nd2 {[%clk 0:00:24.9]} 50... Nc3 {[%clk 0:00:18.9]} 51. Ke1
{[%clk 0:00:20.5]} 51... Nd1 {[%clk 0:00:19.3]} 52. Bf4 {[%clk 0:00:20.1]} 52...
Nb2 {[%clk 0:00:18.4]} 53. Kf2 {[%clk 0:00:17.9]} 53... Bxd2 {[%clk 0:00:17.1]}
54. Bxd2 {[%clk 0:00:18.2]} 54... Nc4 {[%clk 0:00:17.7]} 55. Ke1 {[%clk
0:00:18.8]} 55... Ne5 {[%clk 0:00:17.6]} 56. Kf2 {[%clk 0:00:19]} 56... Nc4
{[%clk 0:00:17.9]} 57. Bf4 {[%clk 0:00:19.2]} 57... d2 {[%clk 0:00:17.6]} 58.
Ke2 {[%clk 0:00:19.7]} 58... Kf5 {[%clk 0:00:17.8]} 59. Bxd2 {[%clk 0:00:19.6]}
59... Ne5 {[%clk 0:00:18.1]} 60. h7 {[%clk 0:00:18.9]} 60... Nf7 {[%clk
0:00:18.4]} 61. Bc3 {[%clk 0:00:19.4]} 61... Kg6 {[%clk 0:00:18]} 62. h8=Q
{[%clk 0:00:20]} 62... Nxh8 {[%clk 0:00:18.3]} 63. Bxh8 {[%clk 0:00:20.8]} 63...
Kf7 {[%clk 0:00:19.2]} 64. Bc3 {[%clk 0:00:21.6]} 64... Ke6 {[%clk 0:00:19.3]}
65. Ke3 {[%clk 0:00:22.5]} 65... Kf7 {[%clk 0:00:20.2]} 66. Ke4 {[%clk
0:00:23.4]} 66... Ke8 {[%clk 0:00:21.1]} 67. f4 {[%clk 0:00:24.2]} 67... Kf8
{[%clk 0:00:22]} 68. Ke5 {[%clk 0:00:25.1]} 68... Kf7 {[%clk 0:00:22.9]} 69. f5
{[%clk 0:00:26]} 69... Ke7 {[%clk 0:00:23.8]} 70. f6+ {[%clk 0:00:26.9]} 70...
Kf7 {[%clk 0:00:24.7]} 71. Kf5 {[%clk 0:00:27.7]} 71... Ke8 {[%clk 0:00:25.6]}
72. Ke6 {[%clk 0:00:28.4]} 72... Kf8 {[%clk 0:00:26.5]} 73. Bb4+ {[%clk
0:00:27.5]} 73... Ke8 {[%clk 0:00:27.4]} 74. f7+ {[%clk 0:00:28.1]} 74... Kd8
{[%clk 0:00:28]} 75. f8=Q+ {[%clk 0:00:27.4]} 75... Kc7 {[%clk 0:00:28.9]} 76.
Qd6+ {[%clk 0:00:27.9]} 76... Kb7 {[%clk 0:00:28.8]} 77. Kd5 {[%clk 0:00:25.9]}
77... Ka7 {[%clk 0:00:29.7]} 78. Kc5 {[%clk 0:00:25.3]} 78... Ka8 {[%clk
0:00:30.6]} 79. Qd7 {[%clk 0:00:24.2]} 79... Kb8 {[%clk 0:00:30.3]} 80. Kb6
{[%clk 0:00:24.8]} 80... Ka8 {[%clk 0:00:31.2]} 81. Qd8# {[%clk 0:00:25.3]} 1-0

[Event "*** Titled Tuesday Blitz"]
[Site "Chess.com"]
[Date "2021.02.02"]
[Round "4"]
[White "A-S-00"]
[Black "chescomhuynya"]
[Result "0-1"]
[WhiteElo "2333"]
[BlackElo "2508"]
[TimeControl "180+1"]
[EndTime "10:43:40 PST"]
[Termination "chescomhuynya won by resignation"]

1. d4 {[%clk 0:03:00.9]} 1... Nf6 {[%clk 0:02:58.4]} 2. c4 {[%clk 0:03:01.2]}
2... g6 {[%clk 0:02:54.6]} 3. Nc3 {[%clk 0:03:00.3]} 3... d5 {[%clk 0:02:54.9]}
4. cxd5 {[%clk 0:02:59.7]} 4... Nxd5 {[%clk 0:02:55.8]} 5. e4 {[%clk 0:03:00.2]}
5... Nxc3 {[%clk 0:02:56.3]} 6. bxc3 {[%clk 0:03:00.6]} 6... Bg7 {[%clk
0:02:57.2]} 7. Nf3 {[%clk 0:03:00.7]} 7... c5 {[%clk 0:02:55.3]} 8. Be2 {[%clk
0:02:55.8]} 8... Nc6 {[%clk 0:02:54.9]} 9. Be3 {[%clk 0:02:47.6]} 9... Qa5
{[%clk 0:02:53.2]} 10. Qd2 {[%clk 0:02:25.5]} 10... cxd4 {[%clk 0:02:51.4]} 11.
cxd4 {[%clk 0:02:24.6]} 11... Qxd2+ {[%clk 0:02:50.5]} 12. Kxd2 {[%clk
0:02:20.6]} 12... O-O {[%clk 0:02:48.8]} 13. Rhd1 {[%clk 0:02:18.8]} 13... Rd8
{[%clk 0:02:48.1]} 14. Ke1 {[%clk 0:02:15.8]} 14... Bg4 {[%clk 0:02:44.7]} 15.
e5 {[%clk 0:02:08.5]} 15... Nb4 {[%clk 0:02:39.2]} 16. Rac1 {[%clk 0:01:56]}
16... Nxa2 {[%clk 0:02:32.8]} 17. Rc7 {[%clk 0:01:55.3]} 17... Rd7 {[%clk
0:02:33]} 18. Rxd7 {[%clk 0:01:47.6]} 18... Bxd7 {[%clk 0:02:33.9]} 19. Bd2
{[%clk 0:01:41.6]} 19... Be6 {[%clk 0:02:02.6]} 20. Rb1 {[%clk 0:01:29.6]} 20...
b6 {[%clk 0:02:02.3]} 21. Ng5 {[%clk 0:01:20.7]} 21... Bd5 {[%clk 0:02:02]} 22.
Bf3 {[%clk 0:00:48.1]} 22... Bxf3 {[%clk 0:02:01.9]} 23. Nxf3 {[%clk 0:00:47.7]}
23... Rc8 {[%clk 0:02:02.5]} 24. Ra1 {[%clk 0:00:35.4]} 24... Rc2 {[%clk
0:01:58.7]} 25. Kd1 {[%clk 0:00:35.6]} 25... Rb2 {[%clk 0:01:58.8]} 26. Ne1
{[%clk 0:00:35.6]} 26... Nb4 {[%clk 0:01:34.5]} 27. Rxa7 {[%clk 0:00:34.3]}
27... h5 {[%clk 0:01:24.5]} 28. Rb7 {[%clk 0:00:30.8]} 28... Nc6 {[%clk
0:01:23]} 29. Nc2 {[%clk 0:00:27.8]} 29... e6 {[%clk 0:01:17.7]} 30. Bc3 {[%clk
0:00:27.5]} 30... Rb3 {[%clk 0:01:17.4]} 31. Kd2 {[%clk 0:00:27.8]} 31... Bh6+
{[%clk 0:01:16.5]} 32. Kd3 {[%clk 0:00:27.2]} 32... Bf8 {[%clk 0:01:07.1]} 33.
Kd2 {[%clk 0:00:20.1]} 33... Kg7 {[%clk 0:00:51.2]} 34. g3 {[%clk 0:00:20.1]}
34... Ne7 {[%clk 0:00:42.2]} 35. Ne3 {[%clk 0:00:19.6]} 35... b5 {[%clk
0:00:34.9]} 36. Kc2 {[%clk 0:00:16.8]} 36... Ra3 {[%clk 0:00:34.5]} 37. Rxb5
{[%clk 0:00:16.7]} 37... Nc6 {[%clk 0:00:33.6]} 38. Rb6 {[%clk 0:00:14.8]} 38...
Ne7 {[%clk 0:00:30.9]} 39. Kd3 {[%clk 0:00:14.4]} 39... Kg8 {[%clk 0:00:27.3]}
40. Nc4 {[%clk 0:00:14.3]} 40... Ra2 {[%clk 0:00:26.3]} 41. Rb8 {[%clk
0:00:14.2]} 41... Rxf2 {[%clk 0:00:25.4]} 42. Bb4 {[%clk 0:00:14.3]} 42... Kg7
{[%clk 0:00:23.8]} 43. Nd6 {[%clk 0:00:13.4]} 43... Nd5 {[%clk 0:00:23.4]} 44.
Ne8+ {[%clk 0:00:13.1]} 44... Kg8 {[%clk 0:00:21.9]} 45. Nf6+ {[%clk 0:00:12.5]}
45... Nxf6 {[%clk 0:00:20.4]} 46. Rxf8+ {[%clk 0:00:12.5]} 46... Kg7 {[%clk
0:00:20.1]} 47. exf6+ {[%clk 0:00:12.5]} 47... Kxf6 {[%clk 0:00:20.7]} 48. Rh8
{[%clk 0:00:11.7]} 48... Rxh2 {[%clk 0:00:20.5]} 49. Bc3 {[%clk 0:00:11.8]}
49... Rg2 {[%clk 0:00:18.8]} 50. d5+ {[%clk 0:00:12]} 50... Ke7 {[%clk 0:00:19]}
51. dxe6 {[%clk 0:00:12.4]} 51... Kxe6 {[%clk 0:00:19.5]} 52. Ke4 {[%clk
0:00:11.1]} 52... Rxg3 {[%clk 0:00:18.4]} 53. Re8+ {[%clk 0:00:11.2]} 53... Kd7
{[%clk 0:00:18.5]} 54. Rf8 {[%clk 0:00:10.5]} 54... Rxc3 {[%clk 0:00:18.8]} 55.
Rxf7+ {[%clk 0:00:10.9]} 55... Ke6 {[%clk 0:00:19.4]} 56. Rg7 {[%clk 0:00:11.2]}
56... Kf6 {[%clk 0:00:19.6]} 57. Rg8 {[%clk 0:00:10.8]} 57... Rc7 {[%clk
0:00:18.8]} 58. Kf3 {[%clk 0:00:10.8]} 58... Kg5 {[%clk 0:00:19]} 59. Rd8 {[%clk
0:00:08.7]} 59... Rc3+ {[%clk 0:00:18.6]} 60. Kg2 {[%clk 0:00:08.9]} 60... h4
{[%clk 0:00:15.9]} 61. Rd5+ {[%clk 0:00:07.9]} 61... Kg4 {[%clk 0:00:14.3]} 62.
Rd4+ {[%clk 0:00:08.1]} 62... Kh5 {[%clk 0:00:14.7]} 63. Ra4 {[%clk 0:00:08]}
63... g5 {[%clk 0:00:15]} 64. Rb4 {[%clk 0:00:08.2]} 64... h3+ {[%clk
0:00:14.7]} 65. Kh2 {[%clk 0:00:07.6]} 65... g4 {[%clk 0:00:14.5]} 66. Ra4
{[%clk 0:00:05.3]} 66... Kh4 {[%clk 0:00:14.4]} 67. Rb4 {[%clk 0:00:04.2]} 67...
Rc2+ {[%clk 0:00:13.6]} 68. Kh1 {[%clk 0:00:03.5]} 68... Rf2 {[%clk 0:00:07.9]}
69. Rc4 {[%clk 0:00:03.7]} 69... Kg3 {[%clk 0:00:07.8]} 70. Rc3+ {[%clk
0:00:04.1]} 70... Rf3 {[%clk 0:00:08.3]} 71. Rxf3+ {[%clk 0:00:03.9]} 0-1

[Event "*** Titled Tuesday Blitz"]
[Site "Chess.com"]
[Date "2021.02.02"]
[Round "4"]
[White "zurzan"]
[Black "Pantata007"]
[Result "0-1"]
[WhiteElo "2020"]
[BlackElo "2248"]
[TimeControl "180+1"]
[EndTime "10:43:44 PST"]
[Termination "Pantata007 won by resignation"]

1. f4 {[%clk 0:03:00.9]} 1... Nf6 {[%clk 0:02:59.1]} 2. Nf3 {[%clk 0:03:00.9]}
2... g6 {[%clk 0:02:59.4]} 3. g3 {[%clk 0:03:01.4]} 3... Bg7 {[%clk 0:02:59.8]}
4. Bg2 {[%clk 0:03:02.3]} 4... O-O {[%clk 0:03:00.1]} 5. O-O {[%clk 0:03:03.2]}
5... c5 {[%clk 0:03:00.1]} 6. d3 {[%clk 0:03:04.1]} 6... d5 {[%clk 0:02:59.5]}
7. c3 {[%clk 0:03:04.5]} 7... Nc6 {[%clk 0:02:59.6]} 8. Qc2 {[%clk 0:03:05.4]}
8... Re8 {[%clk 0:02:45.4]} 9. Ne5 {[%clk 0:03:04.7]} 9... Nxe5 {[%clk
0:02:40.2]} 10. fxe5 {[%clk 0:03:05.6]} 10... Ng4 {[%clk 0:02:40.6]} 11. d4
{[%clk 0:03:04.4]} 11... Bf5 {[%clk 0:02:40.4]} 12. Qd1 {[%clk 0:02:55]} 12...
Be4 {[%clk 0:01:43]} 13. h3 {[%clk 0:02:45.2]} 13... Nh6 {[%clk 0:01:25.7]} 14.
Nd2 {[%clk 0:02:37.4]} 14... Bxg2 {[%clk 0:01:22.3]} 15. Kxg2 {[%clk 0:02:38.3]}
15... cxd4 {[%clk 0:01:20.8]} 16. cxd4 {[%clk 0:02:37.8]} 16... f6 {[%clk
0:01:21.2]} 17. Nf3 {[%clk 0:02:35]} 17... fxe5 {[%clk 0:01:08.2]} 18. Bxh6
{[%clk 0:02:33.5]} 18... Bxh6 {[%clk 0:01:07.5]} 19. Nxe5 {[%clk 0:02:31.2]}
19... Qb6 {[%clk 0:00:57.9]} 20. Qd3 {[%clk 0:01:51.2]} 20... Bg7 {[%clk
0:00:33.7]} 21. Rab1 {[%clk 0:01:37.6]} 21... Rac8 {[%clk 0:00:32.5]} 22. Rf3
{[%clk 0:01:26.1]} 22... Qe6 {[%clk 0:00:23.1]} 23. Re3 {[%clk 0:01:20.8]} 23...
Qd6 {[%clk 0:00:22.8]} 24. Rf1 {[%clk 0:01:16.7]} 24... Rf8 {[%clk 0:00:20.9]}
25. Rxf8+ {[%clk 0:01:03.1]} 25... Rxf8 {[%clk 0:00:21.8]} 26. Qb3 {[%clk
0:01:01.8]} 26... b6 {[%clk 0:00:19.8]} 27. Qc3 {[%clk 0:00:54.6]} 27... h5
{[%clk 0:00:11.4]} 28. Rf3 {[%clk 0:00:54.6]} 28... Rxf3 {[%clk 0:00:09.7]} 29.
Nxf3 {[%clk 0:00:52.4]} 29... Qf6 {[%clk 0:00:06.5]} 30. Qc8+ {[%clk 0:00:52]}
30... Kh7 {[%clk 0:00:06.1]} 31. h4 {[%clk 0:00:43.5]} 31... a5 {[%clk
0:00:05.9]} 32. Ng5+ {[%clk 0:00:43]} 32... Kh6 {[%clk 0:00:06.1]} 33. Nf3
{[%clk 0:00:43.1]} 33... Qf5 {[%clk 0:00:02.6]} 34. Qxf5 {[%clk 0:00:40.7]}
34... gxf5 {[%clk 0:00:02.4]} 35. e3 {[%clk 0:00:40.9]} 35... Bf6 {[%clk
0:00:02.4]} 36. Kf2 {[%clk 0:00:40.4]} 36... Kg7 {[%clk 0:00:02.5]} 37. Ke2
{[%clk 0:00:40.7]} 37... Kf7 {[%clk 0:00:03]} 38. Kd3 {[%clk 0:00:41.6]} 38...
Ke8 {[%clk 0:00:03.3]} 39. Kc3 {[%clk 0:00:42.1]} 39... b5 {[%clk 0:00:02.8]}
40. b4 {[%clk 0:00:41.1]} 40... a4 {[%clk 0:00:01.9]} 41. a3 {[%clk 0:00:40.5]}
41... Kd7 {[%clk 0:00:02.1]} 42. Kd3 {[%clk 0:00:38.7]} 42... Kc6 {[%clk
0:00:02.5]} 43. Nd2 {[%clk 0:00:36.4]} 43... e5 {[%clk 0:00:02.1]} 44. Nf1
{[%clk 0:00:35.6]} 44... e4+ {[%clk 0:00:02]} 45. Ke2 {[%clk 0:00:34.8]} 45...
Be7 {[%clk 0:00:02.2]} 46. Kd1 {[%clk 0:00:32.9]} 46... Bd6 {[%clk 0:00:01.5]}
47. Kc2 {[%clk 0:00:33.1]} 47... Kc7 {[%clk 0:00:01.5]} 48. Kd2 {[%clk
0:00:33.2]} 48... Kb7 {[%clk 0:00:02]} 49. Ke2 {[%clk 0:00:33.5]} 49... Kb6
{[%clk 0:00:02.4]} 50. Kf2 {[%clk 0:00:33.8]} 50... Bxb4 {[%clk 0:00:01.3]} 51.
axb4 {[%clk 0:00:31.8]} 51... a3 {[%clk 0:00:02.2]} 52. Nd2 {[%clk 0:00:32]}
52... a2 {[%clk 0:00:02.4]} 53. Nb3 {[%clk 0:00:32.1]} 53... Kc6 {[%clk
0:00:02.8]} 54. Kg2 {[%clk 0:00:30.5]} 54... Kd6 {[%clk 0:00:03.2]} 55. Kf2
{[%clk 0:00:30.8]} 55... Ke6 {[%clk 0:00:03.7]} 56. Ke2 {[%clk 0:00:31.3]} 56...
Kf6 {[%clk 0:00:04.1]} 57. Kd2 {[%clk 0:00:31.8]} 57... Ke6 {[%clk 0:00:03.8]}
58. Kc2 {[%clk 0:00:32]} 58... f4 {[%clk 0:00:04.3]} 59. gxf4 {[%clk 0:00:29.8]}
59... Kf5 {[%clk 0:00:04.8]} 60. Kb2 {[%clk 0:00:30.1]} 60... Kg4 {[%clk
0:00:05.2]} 61. Kxa2 {[%clk 0:00:29.9]} 61... Kxh4 {[%clk 0:00:05.7]} 62. Nd2
{[%clk 0:00:28.8]} 62... Kg4 {[%clk 0:00:05.8]} 63. Nxe4 {[%clk 0:00:25.2]}
63... dxe4 {[%clk 0:00:05.1]} 64. d5 {[%clk 0:00:25.5]} 64... h4 {[%clk
0:00:04.7]} 65. d6 {[%clk 0:00:25.6]} 65... h3 {[%clk 0:00:04.7]} 66. d7 {[%clk
0:00:25.6]} 66... h2 {[%clk 0:00:04.9]} 67. d8=Q {[%clk 0:00:25.6]} 67... h1=Q
{[%clk 0:00:04.9]} 68. Qd7+ {[%clk 0:00:24.5]} 68... Kf3 {[%clk 0:00:04.5]} 69.
Qxb5 {[%clk 0:00:23.5]} 69... Qg2+ {[%clk 0:00:02.5]} 70. Kb3 {[%clk 0:00:23.6]}
70... Kxe3 {[%clk 0:00:02.3]} 71. Qc5+ {[%clk 0:00:22.6]} 71... Kf3 {[%clk
0:00:02.3]} 72. Qe5 {[%clk 0:00:22]} 72... e3 {[%clk 0:00:01.6]} 73. Qd5+ {[%clk
0:00:22.1]} 73... Kf2 {[%clk 0:00:01.7]} 74. Qxg2+ {[%clk 0:00:21.8]} 74... Kxg2
{[%clk 0:00:01.7]} 75. f5 {[%clk 0:00:22.7]} 75... e2 {[%clk 0:00:01.8]} 76. f6
{[%clk 0:00:23.6]} 76... e1=Q {[%clk 0:00:02]} 77. f7 {[%clk 0:00:24.5]} 77...
Qf2 {[%clk 0:00:02.1]} 78. Kc4 {[%clk 0:00:24]} 78... Qxf7+ {[%clk 0:00:02.3]}
79. Kc5 {[%clk 0:00:24.9]} 79... Qb7 {[%clk 0:00:02.8]} 80. b5 {[%clk
0:00:24.9]} 80... Kf3 {[%clk 0:00:03.7]} 81. b6 {[%clk 0:00:25.3]} 81... Ke4
{[%clk 0:00:04.6]} 82. Kd6 {[%clk 0:00:25.5]} 82... Kd4 {[%clk 0:00:04.2]} 83.
Ke6 {[%clk 0:00:25.3]} 83... Kc5 {[%clk 0:00:04.3]} 0-1